[Event "*** Titled Tuesday Blitz"]
[Site "Chess.com"]
[Date "2020.05.12"]
[Round "5"]
[White "zmarian"]
[Black "chesstatour"]
[Result "1-0"]
[WhiteElo "2142"]
[BlackElo "1922"]
[TimeControl "180+1"]
[EndTime "10:54:58 PDT"]
[Termination "zmarian won on time"]

1. g3 {[%clk 0:03:00.9]} 1... g6 {[%clk 0:02:59]} 2. Bg2 {[%clk 0:03:00.3]} 2...
Bg7 {[%clk 0:02:59.7]} 3. Nf3 {[%clk 0:02:58.6]} 3... Nf6 {[%clk 0:02:59.2]} 4.
O-O {[%clk 0:02:58.2]} 4... O-O {[%clk 0:02:59.3]} 5. c4 {[%clk 0:02:57]} 5...
c5 {[%clk 0:02:58.8]} 6. d4 {[%clk 0:02:56.2]} 6... cxd4 {[%clk 0:02:58.7]} 7.
Nxd4 {[%clk 0:02:56]} 7... Nc6 {[%clk 0:02:58.6]} 8. Nc3 {[%clk 0:02:55]} 8...
Nxd4 {[%clk 0:02:55.4]} 9. Qxd4 {[%clk 0:02:54.3]} 9... d6 {[%clk 0:02:50.5]}
10. Qd3 {[%clk 0:02:53.8]} 10... Bf5 {[%clk 0:02:46.4]} 11. e4 {[%clk
0:02:49.6]} 11... Be6 {[%clk 0:02:46.4]} 12. Rb1 {[%clk 0:02:41.4]} 12... Rc8
{[%clk 0:02:43.3]} 13. b3 {[%clk 0:02:39.9]} 13... a6 {[%clk 0:02:43.3]} 14. Bb2
{[%clk 0:02:38.6]} 14... Qa5 {[%clk 0:02:33.5]} 15. Rfd1 {[%clk 0:02:29.4]}
15... Qh5 {[%clk 0:02:20.3]} 16. Nd5 {[%clk 0:02:22.2]} 16... Nxd5 {[%clk
0:02:03.5]} 17. cxd5 {[%clk 0:02:19.8]} 17... Bh3 {[%clk 0:02:02.4]} 18. Bxg7
{[%clk 0:02:12.5]} 18... Kxg7 {[%clk 0:01:52.5]} 19. Rdc1 {[%clk 0:02:06.4]}
19... Bxg2 {[%clk 0:01:40]} 20. Kxg2 {[%clk 0:02:05.7]} 20... Qe5 {[%clk
0:01:36]} 21. h3 {[%clk 0:01:52.5]} 21... Rc5 {[%clk 0:01:30.4]} 22. Rc2 {[%clk
0:01:49.9]} 22... Rfc8 {[%clk 0:01:19.6]} 23. Rbc1 {[%clk 0:01:48.7]} 23... f5
{[%clk 0:01:16.5]} 24. Rxc5 {[%clk 0:01:44.9]} 24... dxc5 {[%clk 0:00:44.7]} 25.
exf5 {[%clk 0:01:43.1]} 25... Qxf5 {[%clk 0:00:39.8]} 26. Qxf5 {[%clk
0:01:31.1]} 26... gxf5 {[%clk 0:00:39.3]} 27. Kf3 {[%clk 0:01:30.3]} 27... b6
{[%clk 0:00:32.8]} 28. Kf4 {[%clk 0:01:29.7]} 28... Kf6 {[%clk 0:00:32.2]} 29.
Rd1 {[%clk 0:01:26.9]} 29... c4 {[%clk 0:00:27.6]} 30. bxc4 {[%clk 0:01:20.3]}
30... Rxc4+ {[%clk 0:00:26.8]} 31. Kf3 {[%clk 0:01:19.3]} 31... Rc3+ {[%clk
0:00:12.5]} 32. Kg2 {[%clk 0:01:18.3]} 32... Rc2 {[%clk 0:00:11.8]} 33. d6
{[%clk 0:01:16.7]} 33... exd6 {[%clk 0:00:10.4]} 34. Rxd6+ {[%clk 0:01:15.8]}
34... Ke5 {[%clk 0:00:10.8]} 35. Rxb6 {[%clk 0:01:15.1]} 35... Rxa2 {[%clk
0:00:11]} 36. Rh6 {[%clk 0:01:14.1]} 36... a5 {[%clk 0:00:08.6]} 37. Rxh7 {[%clk
0:01:14.1]} 37... a4 {[%clk 0:00:08.8]} 38. Ra7 {[%clk 0:01:13.9]} 38... a3
{[%clk 0:00:08.6]} 39. h4 {[%clk 0:01:13.6]} 39... Kf6 {[%clk 0:00:08.9]} 40.
Ra6+ {[%clk 0:01:11.5]} 40... Ke5 {[%clk 0:00:06.6]} 41. h5 {[%clk 0:01:11.2]}
41... Ra1 {[%clk 0:00:03.2]} 42. h6 {[%clk 0:01:11]} 42... a2 {[%clk 0:00:02.7]}
43. h7 {[%clk 0:01:10.9]} 1-0

[Event "*** Titled Tuesday Blitz"]
[Site "Chess.com"]
[Date "2020.05.12"]
[Round "5"]
[White "WeAintSurePal"]
[Black "nonsopolo1"]
[Result "1-0"]
[WhiteElo "2347"]
[BlackElo "2177"]
[TimeControl "180+1"]
[EndTime "10:54:59 PDT"]
[Termination "WeAintSurePal won by checkmate"]

1. d4 {[%clk 0:03:00.9]} 1... Nf6 {[%clk 0:02:53.1]} 2. Nf3 {[%clk 0:02:59.8]}
2... d5 {[%clk 0:02:52.3]} 3. Bf4 {[%clk 0:02:58.5]} 3... e6 {[%clk 0:02:51.1]}
4. e3 {[%clk 0:02:58.8]} 4... Bd6 {[%clk 0:02:50.2]} 5. Bg3 {[%clk 0:02:59.1]}
5... O-O {[%clk 0:02:49.7]} 6. c3 {[%clk 0:02:58.3]} 6... c6 {[%clk 0:02:46.5]}
7. Nbd2 {[%clk 0:02:58.4]} 7... Re8 {[%clk 0:02:43.2]} 8. Bd3 {[%clk 0:02:58.4]}
8... c5 {[%clk 0:02:41]} 9. Qe2 {[%clk 0:02:56.4]} 9... Nc6 {[%clk 0:02:40.5]}
10. Ne5 {[%clk 0:02:53.8]} 10... Ne7 {[%clk 0:02:28.4]} 11. Ndf3 {[%clk
0:02:49.1]} 11... b6 {[%clk 0:02:27.1]} 12. Ng5 {[%clk 0:02:44.7]} 12... Rf8
{[%clk 0:02:15.2]} 13. O-O {[%clk 0:02:38.2]} 13... h6 {[%clk 0:02:10.5]} 14.
Ngf3 {[%clk 0:02:32.9]} 14... Bb7 {[%clk 0:02:09.2]} 15. a4 {[%clk 0:02:32.6]}
15... a6 {[%clk 0:02:03.5]} 16. Rab1 {[%clk 0:02:16.3]} 16... Ne4 {[%clk
0:01:55.5]} 17. Rfc1 {[%clk 0:01:59.9]} 17... f6 {[%clk 0:01:47.4]} 18. Ng4
{[%clk 0:01:59.5]} 18... h5 {[%clk 0:01:37.5]} 19. Nh6+ {[%clk 0:01:57]} 19...
gxh6 {[%clk 0:01:34.3]} 20. Nh4 {[%clk 0:01:56.9]} 20... Bxg3 {[%clk 0:01:27.3]}
21. hxg3 {[%clk 0:01:57.8]} 21... Qe8 {[%clk 0:01:24.9]} 22. c4 {[%clk 0:01:55]}
22... Nf5 {[%clk 0:01:07.7]} 23. cxd5 {[%clk 0:01:52.1]} 23... Bxd5 {[%clk
0:00:56.2]} 24. dxc5 {[%clk 0:01:31.2]} 24... bxc5 {[%clk 0:00:47.2]} 25. Qc2
{[%clk 0:01:22.6]} 25... Nxh4 {[%clk 0:00:43.4]} 26. Bxe4 {[%clk 0:01:20]} 26...
Bxe4 {[%clk 0:00:36.2]} 27. Qxe4 {[%clk 0:01:20.9]} 27... Nf5 {[%clk 0:00:36.3]}
28. Rxc5 {[%clk 0:01:20.1]} 28... Rc8 {[%clk 0:00:32.8]} 29. Rbc1 {[%clk
0:01:17.9]} 29... Rxc5 {[%clk 0:00:30.2]} 30. Rxc5 {[%clk 0:01:18.8]} 30... Qe7
{[%clk 0:00:27.1]} 31. Rxf5 {[%clk 0:01:13.4]} 31... Rb8 {[%clk 0:00:13]} 32.
Rxh5 {[%clk 0:01:09.6]} 32... Kg7 {[%clk 0:00:11.9]} 33. Rh4 {[%clk 0:01:07.4]}
33... Rxb2 {[%clk 0:00:08.4]} 34. Rg4+ {[%clk 0:01:07.3]} 34... Kf8 {[%clk
0:00:07.3]} 35. Qa8+ {[%clk 0:01:06.4]} 35... Kf7 {[%clk 0:00:05.7]} 36. Qg8#
{[%clk 0:01:05.8]} 1-0

[Event "*** Titled Tuesday Blitz"]
[Site "Chess.com"]
[Date "2020.05.12"]
[Round "5"]
[White "Mikhail_Biryukov"]
[Black "elisak43"]
[Result "1-0"]
[WhiteElo "2650"]
[BlackElo "2420"]
[TimeControl "180+1"]
[EndTime "10:55:00 PDT"]
[Termination "Mikhail_Biryukov won on time"]

1. e4 {[%clk 0:03:00.9]} 1... e5 {[%clk 0:02:58.5]} 2. Nf3 {[%clk 0:03:00.5]}
2... Nc6 {[%clk 0:02:58.8]} 3. d4 {[%clk 0:02:58.4]} 3... exd4 {[%clk
0:02:59.7]} 4. Nxd4 {[%clk 0:02:59.2]} 4... Bc5 {[%clk 0:02:58.5]} 5. Nb3 {[%clk
0:02:58.9]} 5... Bb6 {[%clk 0:02:59]} 6. Nc3 {[%clk 0:02:59.2]} 6... d6 {[%clk
0:02:58.4]} 7. Nd5 {[%clk 0:02:58.7]} 7... Nge7 {[%clk 0:02:53]} 8. Bg5 {[%clk
0:02:56.5]} 8... O-O {[%clk 0:02:43.1]} 9. Bc4 {[%clk 0:02:52.3]} 9... Be6
{[%clk 0:02:33.5]} 10. Qd3 {[%clk 0:02:32]} 10... Bxd5 {[%clk 0:02:30.9]} 11.
Bxd5 {[%clk 0:02:31.8]} 11... Nb4 {[%clk 0:02:29.9]} 12. Qd2 {[%clk 0:02:22.3]}
12... Nbxd5 {[%clk 0:02:23.2]} 13. exd5 {[%clk 0:02:23.2]} 13... Qd7 {[%clk
0:02:21.2]} 14. O-O {[%clk 0:02:22.4]} 14... Rfe8 {[%clk 0:02:20.9]} 15. a4
{[%clk 0:02:20.4]} 15... a6 {[%clk 0:02:14.1]} 16. a5 {[%clk 0:02:18]} 16... Ba7
{[%clk 0:02:14.2]} 17. Rfe1 {[%clk 0:02:08.6]} 17... Ng6 {[%clk 0:02:11.3]} 18.
Nd4 {[%clk 0:02:00.1]} 18... Qg4 {[%clk 0:02:05.4]} 19. Nf3 {[%clk 0:01:58.8]}
19... h6 {[%clk 0:01:59.4]} 20. h3 {[%clk 0:01:57.9]} 20... Qf5 {[%clk
0:01:25.2]} 21. Be3 {[%clk 0:01:57.7]} 21... Bxe3 {[%clk 0:01:24.9]} 22. fxe3
{[%clk 0:01:58.6]} 22... Ne5 {[%clk 0:01:17.9]} 23. Rf1 {[%clk 0:01:54.4]} 23...
Nc4 {[%clk 0:01:15.1]} 24. Qc3 {[%clk 0:01:47.1]} 24... Nxe3 {[%clk 0:01:13]}
25. Rf2 {[%clk 0:01:47.7]} 25... Nxd5 {[%clk 0:01:11.1]} 26. Qb3 {[%clk
0:01:46.4]} 26... Nf6 {[%clk 0:00:23.8]} 27. Qxb7 {[%clk 0:01:27.4]} 27... Qd7
{[%clk 0:00:23.8]} 28. Qb4 {[%clk 0:01:19.7]} 28... Rab8 {[%clk 0:00:23.5]} 29.
Qc4 {[%clk 0:01:18.2]} 29... Rb5 {[%clk 0:00:18.3]} 30. b3 {[%clk 0:01:17.6]}
30... c6 {[%clk 0:00:14.4]} 31. Nd4 {[%clk 0:01:16.1]} 31... Rc5 {[%clk
0:00:08.4]} 32. Qxa6 {[%clk 0:01:15.6]} 32... Ne4 {[%clk 0:00:08.7]} 33. Re2
{[%clk 0:01:14.5]} 33... Nc3 {[%clk 0:00:07.4]} 34. Rxe8+ {[%clk 0:01:14.5]}
34... Qxe8 {[%clk 0:00:05.4]} 35. Qd3 {[%clk 0:01:14]} 35... Qe5 {[%clk
0:00:04.4]} 36. a6 {[%clk 0:01:13.5]} 36... Nb5 {[%clk 0:00:02.2]} 37. a7 {[%clk
0:01:12.1]} 37... Nxa7 {[%clk 0:00:02.4]} 38. Rxa7 {[%clk 0:01:11.5]} 38... Qe1+
{[%clk 0:00:03.3]} 39. Kh2 {[%clk 0:01:10.9]} 39... Qe5+ {[%clk 0:00:03.7]} 40.
g3 {[%clk 0:01:11.1]} 40... Rd5 {[%clk 0:00:03.6]} 41. Ra8+ {[%clk 0:01:10.7]}
1-0

[Event "*** Titled Tuesday Blitz"]
[Site "Chess.com"]
[Date "2020.05.12"]
[Round "5"]
[White "Ekka83"]
[Black "ZverevLev"]
[Result "0-1"]
[WhiteElo "2345"]
[BlackElo "2117"]
[TimeControl "180+1"]
[EndTime "10:55:00 PDT"]
[Termination "ZverevLev won on time"]

1. e4 {[%clk 0:03:00.9]} 1... c6 {[%clk 0:02:46.2]} 2. d4 {[%clk 0:03:00.4]}
2... d5 {[%clk 0:02:44.7]} 3. e5 {[%clk 0:02:54.4]} 3... Bf5 {[%clk 0:02:38.9]}
4. Bd3 {[%clk 0:02:49.1]} 4... Bxd3 {[%clk 0:02:36.7]} 5. Qxd3 {[%clk 0:02:50]}
5... e6 {[%clk 0:02:36.9]} 6. Ne2 {[%clk 0:02:48]} 6... Qd7 {[%clk 0:02:34.6]}
7. O-O {[%clk 0:02:47.2]} 7... c5 {[%clk 0:02:31.7]} 8. c3 {[%clk 0:02:46.6]}
8... Nc6 {[%clk 0:02:30.3]} 9. a3 {[%clk 0:02:45]} 9... Nge7 {[%clk 0:02:25.6]}
10. b4 {[%clk 0:02:43.5]} 10... c4 {[%clk 0:02:23.4]} 11. Qc2 {[%clk 0:02:34]}
11... a6 {[%clk 0:02:24.3]} 12. a4 {[%clk 0:02:33.5]} 12... g6 {[%clk
0:02:16.6]} 13. Bg5 {[%clk 0:02:32]} 13... Bg7 {[%clk 0:02:14]} 14. Nd2 {[%clk
0:02:23.9]} 14... O-O {[%clk 0:02:12]} 15. Bf6 {[%clk 0:01:51.6]} 15... b5
{[%clk 0:02:07.5]} 16. Bxg7 {[%clk 0:01:48.7]} 16... Kxg7 {[%clk 0:02:05.8]} 17.
Rfe1 {[%clk 0:01:35.6]} 17... Rfb8 {[%clk 0:02:00.3]} 18. a5 {[%clk 0:01:34.7]}
18... Rf8 {[%clk 0:01:52.5]} 19. Nf1 {[%clk 0:01:32]} 19... Qc7 {[%clk
0:01:48.5]} 20. Neg3 {[%clk 0:01:31.3]} 20... f5 {[%clk 0:01:46.3]} 21. exf6+
{[%clk 0:01:30]} 21... Rxf6 {[%clk 0:01:43]} 22. Ne3 {[%clk 0:01:20.9]} 22... h5
{[%clk 0:01:39.5]} 23. Re2 {[%clk 0:01:10.7]} 23... Raf8 {[%clk 0:01:36.2]} 24.
Rae1 {[%clk 0:01:08.5]} 24... Qd6 {[%clk 0:01:28]} 25. f3 {[%clk 0:01:07.7]}
25... e5 {[%clk 0:01:21.5]} 26. dxe5 {[%clk 0:01:04.3]} 26... Nxe5 {[%clk
0:01:19.6]} 27. Ng4 {[%clk 0:00:43.9]} 27... hxg4 {[%clk 0:01:13.6]} 28. Rxe5
{[%clk 0:00:43.3]} 28... Nc6 {[%clk 0:01:14.5]} 29. Rg5 {[%clk 0:00:37.1]} 29...
gxf3 {[%clk 0:01:08.7]} 30. Nh5+ {[%clk 0:00:26.8]} 30... Kh6 {[%clk 0:01:05.7]}
31. Qd2 {[%clk 0:00:16]} 31... f2+ {[%clk 0:01:02.8]} 0-1

[Event "*** Titled Tuesday Blitz"]
[Site "Chess.com"]
[Date "2020.05.12"]
[Round "5"]
[White "GelmanAlexander"]
[Black "OK97"]
[Result "1-0"]
[WhiteElo "2569"]
[BlackElo "2756"]
[TimeControl "180+1"]
[EndTime "10:55:02 PDT"]
[Termination "GelmanAlexander won by resignation"]

1. c4 {[%clk 0:03:00.9]} 1... e5 {[%clk 0:02:58.3]} 2. e3 {[%clk 0:03:00.9]}
2... Nf6 {[%clk 0:02:57]} 3. a3 {[%clk 0:03:00.5]} 3... c6 {[%clk 0:02:40.9]} 4.
d4 {[%clk 0:02:55.5]} 4... exd4 {[%clk 0:02:38.6]} 5. exd4 {[%clk 0:02:56.4]}
5... d5 {[%clk 0:02:38.2]} 6. Nf3 {[%clk 0:02:56.6]} 6... Be7 {[%clk 0:02:24.2]}
7. h3 {[%clk 0:02:52.2]} 7... O-O {[%clk 0:02:23.8]} 8. Bd3 {[%clk 0:02:52.2]}
8... Nbd7 {[%clk 0:02:01.8]} 9. O-O {[%clk 0:02:50.4]} 9... dxc4 {[%clk
0:02:01.2]} 10. Bxc4 {[%clk 0:02:50.5]} 10... Nb6 {[%clk 0:02:01.9]} 11. Bb3
{[%clk 0:02:45]} 11... h6 {[%clk 0:01:58.4]} 12. Nc3 {[%clk 0:02:45]} 12... Bf5
{[%clk 0:01:58.3]} 13. Re1 {[%clk 0:02:43.9]} 13... Nbd5 {[%clk 0:01:50.3]} 14.
Ne5 {[%clk 0:02:37.9]} 14... Be6 {[%clk 0:01:45.9]} 15. Bc2 {[%clk 0:02:35.9]}
15... Qb6 {[%clk 0:01:18.7]} 16. Qd3 {[%clk 0:02:19.5]} 16... Rfd8 {[%clk
0:01:18.2]} 17. Ng4 {[%clk 0:02:03.6]} 17... Nxc3 {[%clk 0:00:50.2]} 18. bxc3
{[%clk 0:01:54.3]} 18... Qb5 {[%clk 0:00:13.3]} 19. Nxf6+ {[%clk 0:01:17.8]}
19... Bxf6 {[%clk 0:00:14.2]} 20. Qh7+ {[%clk 0:01:18]} 20... Kf8 {[%clk
0:00:14.8]} 21. a4 {[%clk 0:01:17.8]} 21... Qc4 {[%clk 0:00:15.1]} 22. Rb1
{[%clk 0:01:02.8]} 22... b6 {[%clk 0:00:14.3]} 23. Bb3 {[%clk 0:00:50.7]} 23...
Qxc3 {[%clk 0:00:14.4]} 24. Ba3+ {[%clk 0:00:50.7]} 24... Ke8 {[%clk 0:00:14.6]}
25. Bxe6 {[%clk 0:00:47.1]} 25... fxe6 {[%clk 0:00:13.5]} 26. Qg8+ {[%clk
0:00:39.3]} 26... Kd7 {[%clk 0:00:12.6]} 27. Qxe6+ {[%clk 0:00:39.1]} 27... Kc7
{[%clk 0:00:13.2]} 28. Rec1 {[%clk 0:00:34.5]} 28... Qxa3 {[%clk 0:00:03]} 29.
Qxc6+ {[%clk 0:00:34.2]} 1-0

[Event "*** Titled Tuesday Blitz"]
[Site "Chess.com"]
[Date "2020.05.12"]
[Round "5"]
[White "stoleriu"]
[Black "WIDBIFS"]
[Result "0-1"]
[WhiteElo "2561"]
[BlackElo "2734"]
[TimeControl "180+1"]
[EndTime "10:55:02 PDT"]
[Termination "WIDBIFS won by resignation"]

1. e4 {[%clk 0:03:00.9]} 1... g6 {[%clk 0:02:59.1]} 2. d4 {[%clk 0:03:00.9]}
2... Bg7 {[%clk 0:02:59.1]} 3. Nc3 {[%clk 0:03:01.3]} 3... c6 {[%clk 0:02:59.5]}
4. Be3 {[%clk 0:02:58.4]} 4... d5 {[%clk 0:02:59.8]} 5. e5 {[%clk 0:02:57.8]}
5... f6 {[%clk 0:02:58.9]} 6. f4 {[%clk 0:02:57.7]} 6... Nh6 {[%clk 0:02:58.7]}
7. Nf3 {[%clk 0:02:51.1]} 7... O-O {[%clk 0:02:56.6]} 8. Bd3 {[%clk 0:02:47.4]}
8... Bg4 {[%clk 0:02:56.4]} 9. O-O {[%clk 0:02:46.5]} 9... Nd7 {[%clk
0:02:54.7]} 10. Ne2 {[%clk 0:02:45.4]} 10... e6 {[%clk 0:02:51.4]} 11. exf6
{[%clk 0:02:23.8]} 11... Nxf6 {[%clk 0:02:50.3]} 12. Ne5 {[%clk 0:02:19.6]}
12... Bf5 {[%clk 0:02:36]} 13. Ng3 {[%clk 0:02:04.8]} 13... Bxd3 {[%clk
0:02:34]} 14. Qxd3 {[%clk 0:02:05.7]} 14... Nf5 {[%clk 0:02:34.2]} 15. Ne2
{[%clk 0:01:19.9]} 15... Ne4 {[%clk 0:02:26]} 16. g4 {[%clk 0:01:19.4]} 16...
Nfd6 {[%clk 0:02:25.4]} 17. c4 {[%clk 0:01:14.2]} 17... Qh4 {[%clk 0:01:24.5]}
18. cxd5 {[%clk 0:00:20.4]} 18... exd5 {[%clk 0:01:18.6]} 19. g5 {[%clk
0:00:13.8]} 19... Qh3 {[%clk 0:01:06.1]} 20. Rf3 {[%clk 0:00:11.4]} 20... Qe6
{[%clk 0:00:58.5]} 21. Raf1 {[%clk 0:00:08.5]} 21... Nf5 {[%clk 0:00:57.7]} 22.
Bc1 {[%clk 0:00:05.3]} 22... Rae8 {[%clk 0:00:57.1]} 23. Kh1 {[%clk 0:00:05]}
23... Nh4 {[%clk 0:00:57]} 24. Re3 {[%clk 0:00:04]} 24... Bxe5 {[%clk
0:00:32.1]} 25. dxe5 {[%clk 0:00:03.4]} 25... Qxe5 {[%clk 0:00:29.8]} 26. fxe5
{[%clk 0:00:02]} 26... Rxf1+ {[%clk 0:00:29.2]} 0-1

[Event "*** Titled Tuesday Blitz"]
[Site "Chess.com"]
[Date "2020.05.12"]
[Round "5"]
[White "ajdemipopushi"]
[Black "Sunnika"]
[Result "1-0"]
[WhiteElo "2211"]
[BlackElo "2296"]
[TimeControl "180+1"]
[EndTime "10:55:02 PDT"]
[Termination "ajdemipopushi won by resignation"]

1. Nf3 {[%clk 0:03:00.9]} 1... d5 {[%clk 0:02:58.8]} 2. g3 {[%clk 0:03:00.9]}
2... e6 {[%clk 0:02:57.6]} 3. c4 {[%clk 0:03:00.6]} 3... Nf6 {[%clk 0:02:55.8]}
4. Bg2 {[%clk 0:03:01]} 4... Be7 {[%clk 0:02:55.1]} 5. O-O {[%clk 0:03:01.1]}
5... O-O {[%clk 0:02:54.7]} 6. d4 {[%clk 0:03:00.9]} 6... c5 {[%clk 0:02:52.2]}
7. cxd5 {[%clk 0:02:58.9]} 7... exd5 {[%clk 0:02:51.1]} 8. Nc3 {[%clk 0:02:59]}
8... Nc6 {[%clk 0:02:48.4]} 9. dxc5 {[%clk 0:02:58.8]} 9... Bxc5 {[%clk
0:02:47.2]} 10. Bg5 {[%clk 0:02:58.5]} 10... d4 {[%clk 0:02:38.4]} 11. Ne4
{[%clk 0:02:57.8]} 11... Be7 {[%clk 0:02:32.9]} 12. Bxf6 {[%clk 0:02:57.3]}
12... Bxf6 {[%clk 0:02:32.2]} 13. Ne1 {[%clk 0:02:57.8]} 13... Bf5 {[%clk
0:02:27]} 14. Nd3 {[%clk 0:02:57.3]} 14... Re8 {[%clk 0:02:17.6]} 15. Ndc5
{[%clk 0:02:54.2]} 15... b6 {[%clk 0:02:13.1]} 16. Nb7 {[%clk 0:02:51.4]} 16...
Qd7 {[%clk 0:02:05.4]} 17. Ned6 {[%clk 0:02:50.1]} 17... Be5 {[%clk 0:02:03.1]}
18. Nxe8 {[%clk 0:01:19.4]} 18... Rxe8 {[%clk 0:02:00.4]} 19. Qa4 {[%clk
0:01:15.9]} 19... Re6 {[%clk 0:01:55]} 20. Rac1 {[%clk 0:01:07.7]} 20... Qxb7
{[%clk 0:01:49.6]} 21. Rxc6 {[%clk 0:01:04.4]} 21... Re8 {[%clk 0:01:40.3]} 22.
Rxb6 {[%clk 0:00:59.4]} 22... Qe7 {[%clk 0:01:35.2]} 23. Rb7 {[%clk 0:00:56.3]}
23... Qe6 {[%clk 0:01:32.4]} 24. Bd5 {[%clk 0:00:51.3]} 24... Qe7 {[%clk
0:01:10.2]} 25. Rxe7 {[%clk 0:00:48.9]} 25... Rxe7 {[%clk 0:01:09.4]} 26. Qa5
{[%clk 0:00:36.8]} 26... Re8 {[%clk 0:01:06.1]} 27. Bc6 {[%clk 0:00:34.4]} 27...
Rc8 {[%clk 0:00:57.6]} 28. Qxe5 {[%clk 0:00:33.4]} 28... Bg6 {[%clk 0:00:54.5]}
29. Bd7 {[%clk 0:00:31.8]} 29... Rd8 {[%clk 0:00:48.4]} 30. Qe7 {[%clk 0:00:31]}
30... Ra8 {[%clk 0:00:45.9]} 31. Rc1 {[%clk 0:00:29.6]} 31... h6 {[%clk
0:00:44.2]} 32. Rc8+ {[%clk 0:00:29.1]} 32... Rxc8 {[%clk 0:00:42.9]} 33. Bxc8
{[%clk 0:00:30]} 33... Kh7 {[%clk 0:00:43.1]} 34. Qd6 {[%clk 0:00:30.2]} 34...
h5 {[%clk 0:00:35.5]} 35. Qxd4 {[%clk 0:00:30]} 35... Kh6 {[%clk 0:00:34.7]} 36.
e4 {[%clk 0:00:29.9]} 36... Kh7 {[%clk 0:00:34.6]} 37. f4 {[%clk 0:00:30]} 37...
Kh6 {[%clk 0:00:35.5]} 38. f5 {[%clk 0:00:30.1]} 1-0

[Event "*** Titled Tuesday Blitz"]
[Site "Chess.com"]
[Date "2020.05.12"]
[Round "5"]
[White "Juanovic"]
[Black "FM_VS99"]
[Result "1-0"]
[WhiteElo "2191"]
[BlackElo "2368"]
[TimeControl "180+1"]
[EndTime "10:55:04 PDT"]
[Termination "Juanovic won by resignation"]

1. e4 {[%clk 0:03:00.9]} 1... g6 {[%clk 0:03:00.9]} 2. d4 {[%clk 0:03:00]} 2...
Bg7 {[%clk 0:03:01.5]} 3. Nf3 {[%clk 0:03:00.2]} 3... d6 {[%clk 0:03:02.4]} 4.
c4 {[%clk 0:02:59.8]} 4... e5 {[%clk 0:03:01.3]} 5. dxe5 {[%clk 0:02:58.8]} 5...
dxe5 {[%clk 0:03:00]} 6. Qxd8+ {[%clk 0:02:58.9]} 6... Kxd8 {[%clk 0:03:00.9]}
7. Nc3 {[%clk 0:02:59]} 7... Nc6 {[%clk 0:03:00.1]} 8. Be3 {[%clk 0:02:58.3]}
8... Nd4 {[%clk 0:02:52.6]} 9. O-O-O {[%clk 0:02:56.3]} 9... c5 {[%clk
0:02:51.6]} 10. Bxd4 {[%clk 0:02:42.1]} 10... exd4 {[%clk 0:02:48.5]} 11. Nd5
{[%clk 0:02:41.5]} 11... Ne7 {[%clk 0:02:45.7]} 12. Bd3 {[%clk 0:02:23.4]} 12...
Nxd5 {[%clk 0:02:18.8]} 13. exd5 {[%clk 0:02:22.4]} 13... Bg4 {[%clk 0:02:17.7]}
14. Rhe1 {[%clk 0:02:21.3]} 14... Kd7 {[%clk 0:02:11.3]} 15. Re4 {[%clk
0:02:11.2]} 15... Bxf3 {[%clk 0:01:48.3]} 16. gxf3 {[%clk 0:02:12.1]} 16... Rhe8
{[%clk 0:01:47.4]} 17. Rde1 {[%clk 0:02:11]} 17... f5 {[%clk 0:01:46.9]} 18. Re6
{[%clk 0:02:09.5]} 18... Bh6+ {[%clk 0:01:44.6]} 19. Kc2 {[%clk 0:02:08.5]}
19... Bf4 {[%clk 0:01:43.5]} 20. h3 {[%clk 0:02:07.9]} 20... Rxe6 {[%clk
0:01:43.4]} 21. Rxe6 {[%clk 0:02:04.1]} 21... Re8 {[%clk 0:01:41.1]} 22. Rxe8
{[%clk 0:02:03.4]} 22... Kxe8 {[%clk 0:01:42]} 23. Kb3 {[%clk 0:01:48.4]} 23...
Bd2 {[%clk 0:01:39.6]} 24. Ka4 {[%clk 0:01:47.5]} 24... a6 {[%clk 0:01:35.9]}
25. a3 {[%clk 0:01:44.7]} 25... Be1 {[%clk 0:01:30.9]} 26. b4 {[%clk 0:01:41.6]}
26... cxb4 {[%clk 0:01:29.3]} 27. axb4 {[%clk 0:01:42.5]} 27... Kd7 {[%clk
0:01:28]} 28. c5 {[%clk 0:01:42]} 28... Bxf2 {[%clk 0:01:24.9]} 29. b5 {[%clk
0:01:41]} 29... axb5+ {[%clk 0:01:21.1]} 30. Kxb5 {[%clk 0:01:36.2]} 30... Be1
{[%clk 0:00:56.1]} 31. Kb6 {[%clk 0:01:32.6]} 31... Bb4 {[%clk 0:00:54.8]} 32.
Kb5 {[%clk 0:01:31.6]} 32... Ba3 {[%clk 0:00:54.7]} 33. Kc4 {[%clk 0:01:29.6]}
33... Bb2 {[%clk 0:00:53.5]} 34. Bc2 {[%clk 0:01:28.5]} 34... Kc7 {[%clk
0:00:52.6]} 35. Ba4 {[%clk 0:01:27.8]} 35... d3 {[%clk 0:00:33.8]} 36. Kxd3
{[%clk 0:01:25.5]} 36... Be5 {[%clk 0:00:23.6]} 37. Kc4 {[%clk 0:01:23.6]} 37...
g5 {[%clk 0:00:18.9]} 38. Bc2 {[%clk 0:01:21.3]} 38... b6 {[%clk 0:00:13.2]} 39.
d6+ {[%clk 0:01:13.4]} 39... Kc6 {[%clk 0:00:12.4]} 40. Ba4+ {[%clk 0:01:10.9]}
40... Kb7 {[%clk 0:00:11.9]} 41. c6+ {[%clk 0:01:10.1]} 41... Kc8 {[%clk
0:00:12]} 42. Kd5 {[%clk 0:01:10.2]} 42... Bf6 {[%clk 0:00:10.2]} 43. Bc2 {[%clk
0:01:09]} 43... b5 {[%clk 0:00:03.9]} 44. Bxf5+ {[%clk 0:01:08]} 1-0